bitfinex/quotes_SOLUSD_20251208
["timestamp","ask_amount","ask_price","bid_price","bid_amount"]
[1765200027637,7.92,138.23,138.17,25.33111383]
[1765200027638,7.92,138.23,138.2,3.27717088]
[1765200028351,0.1,138.24,138.21,10.51253735]
[1765200028537,0.1,138.24,138.22,2.69717088]
[1765200028846,0.1,138.24,138.22,3.27717088]
[1765200029030,0.1,138.24,138.23,0.58]
[1765200029237,0.1,138.24,138.22,2.69717088]
[1765200029438,0.1,138.24,138.22,3.27717088]
[1765200030247,0.1,138.24,138.23,26.82035449]
[1765200030560,8.59,138.3,138.23,44.90615352]
[1765200030856,8.59,138.3,138.27,2.69717088]
[1765200031241,7.92,138.3,138.28,3.27717088]
[1765200031541,0.1,138.31,138.27,2.69717088]
[1765200031921,0.67,138.3,138.25,10.61717088]
[1765200032252,0.1,138.31,138.27,2.69717088]
[1765200032422,0.77,138.31,138.27,2.69717088]
[1765200032756,0.1,138.31,138.27,7.57336193]
[1765200032933,0.77,138.31,138.28,6.99336193]
[1765200033136,0.77,138.31,138.27,6.99336193]
[1765200033326,0.77,138.31,138.26,32.30798654]
[1765200033655,7.76336193,138.31,138.26,7.23274989]
[1765200033832,7.76336193,138.31,138.25,7.23323761]
[1765200033833,6.99336193,138.3,138.25,7.23323761]
[1765200034020,6.99336193,138.3,138.21,18.08726104]
[1765200034021,0.67,138.3,138.21,18.08726104]
[1765200034226,23.63912146,138.31,138.21,18.08726104]
[1765200034227,6.99336193,138.26,138.21,18.08726104]
[1765200034423,6.99336193,138.27,138.21,25.08062297]
[1765200034627,7.66336193,138.27,138.21,25.08062297]
[1765200034822,0.67,138.26,138.21,25.08062297]
[1765200035425,0.67,138.26,138.21,25.66062297]
[1765200036353,7.66336193,138.26,138.21,25.32262751]
[1765200036850,0.67,138.25,138.21,25.32262751]
[1765200037759,0.67,138.25,138.21,18.08726104]
[1765200038347,7.66336193,138.27,138.22,0.58]
[1765200038733,0.67,138.26,138.22,0.58]
[1765200039129,0.67,138.26,138.21,25.08062297]
[1765200039335,0.67,138.26,138.21,25.66062297]
[1765200039955,0.67,138.26,138.21,32.89598944]
[1765200041951,7.92,138.27,138.23,6.99336193]
[1765200042125,7.92,138.27,138.23,7.57336193]
[1765200042552,7.92,138.27,138.24,7.57336193]
[1765200042747,7.92,138.27,138.25,0.58]
[1765200042950,0.67,138.29,138.25,0.58]
[1765200043149,0.67,138.29,138.23,7.57336193]
[1765200043555,7.66336193,138.29,138.23,7.57336193]
[1765200044053,7.66336193,138.28,138.24,7.23379629]
[1765200044552,0.67,138.27,138.24,7.23379629]
[1765200044856,8.59,138.3,138.25,0.58]
[1765200045031,4.30637863,138.28,138.24,25.31828703]
[1765200045445,0.67,138.27,138.24,25.31828703]
[1765200046051,4.97637863,138.27,138.22,25.3219505]
[1765200046246,4.30637863,138.26,138.22,25.3219505]
[1765200046551,12.89637863,138.26,138.22,25.3219505]
[1765200046732,0.67,138.25,138.22,25.3219505]
[1765200047137,0.67,138.25,138.22,18.0871075]
[1765200049157,0.67,138.25,138.22,25.3219505]
[1765200053862,8.62,138.29,138.24,4.30637863]
[1765200054263,0.7,138.28,138.24,4.88637863]
[1765200054661,0.7,138.28,138.24,2.30202763]
[1765200056065,0.7,138.28,138.25,7.23327305]
[1765200057561,0.7,138.28,138.25,29.62155563]
[1765200058057,0.7,138.3,138.26,0.58]
[1765200058374,0.1,138.31,138.27,4.30509994]
[1765200058553,0.8,138.31,138.27,4.30509994]
[1765200059147,0.8,138.31,138.28,4.30509994]
[1765200059469,0.8,138.31,138.29,7.23118085]
[1765200060349,0.8,138.31,138.28,7.23170378]
[1765200060547,0.8,138.31,138.27,7.23201224]
[1765200060745,5.10509994,138.31,138.27,7.23201224]
[1765200060946,12.33525451,138.31,138.27,7.23201224]
[1765200061159,4.30509994,138.29,138.26,7.23243275]
[1765200061358,4.30509994,138.29,138.25,7.23312991]
[1765200061359,4.30509994,138.28,138.25,7.23312991]
[1765200061550,4.30509994,138.28,138.23,18.08508078]
[1765200061551,4.30509994,138.27,138.24,7.23348705]
[1765200061754,4.99509994,138.27,138.24,7.23348705]
[1765200061952,0.69,138.26,138.24,7.23348705]
[1765200062564,0.69,138.26,138.23,18.08508078]
[1765200064179,0.69,138.26,138.23,25.31940039]
[1765200066164,4.30509994,138.28,138.23,7.23431961]
[1765200066377,0.69,138.27,138.23,7.81431961]
[1765200066570,8.61,138.28,138.24,0.58]
[1765200066879,0.69,138.28,138.24,4.88509994]
[1765200068083,0.69,138.28,138.25,7.23327305]
[1765200068484,4.99509994,138.28,138.25,7.23327305]
[1765200069057,0.69,138.27,138.25,7.23327305]
[1765200069263,0.69,138.27,138.23,7.23391893]
[1765200069264,4.99509994,138.27,138.23,7.23391893]
[1765200069465,0.69,138.27,138.24,7.2337924]
[1765200069979,0.69,138.27,138.23,4.88509994]
[1765200069980,4.99509994,138.27,138.23,7.2341535]
[1765200070185,4.30509994,138.26,138.22,18.0864461]
[1765200070368,0.69,138.25,138.22,18.0864461]
[1765200072558,0.69,138.25,138.22,25.3212891]
[1765200074066,0.69,138.25,138.22,18.0864461]
[1765200074390,0.69,138.27,138.23,0.58]
[1765200074563,4.99509994,138.3,138.24,4.30509994]
[1765200074884,8.61,138.3,138.24,4.30509994]
[1765200075190,8.61,138.3,138.25,4.88509994]
[1765200075493,0.69,138.29,138.25,4.88509994]
[1765200076291,0.69,138.29,138.26,7.23274989]
[1765200077866,7.92,138.3,138.26,25.89462461]
[1765200078072,8.61,138.3,138.26,25.89462461]
[1765200078466,8.61,138.3,138.26,30.19972455]
[1765200078683,0.1,138.31,138.28,1.72132684]
[1765200078888,0.1,138.31,138.28,2.30132684]
[1765200079097,0.79,138.31,138.28,1.72132684]
[1765200079278,0.79,138.31,138.27,1.72132684]
[1765200079469,0.79,138.31,138.27,2.30132684]
[1765200080588,0.1,138.31,138.29,1.72132684]
[1765200080810,0.1,138.31,138.29,4.30205146]
[1765200080972,0.1,138.31,138.29,4.88205146]
[1765200081994,0.1,138.31,138.3,4.30205146]
[1765200082192,0.1,138.31,138.3,4.88205146]
[1765200082513,0.1,138.34,138.3,4.88205146]
[1765200082514,0.1,138.34,138.31,8.80994492]
[1765200082667,0.1,138.34,138.33,4.30205146]
[1765200083174,0.1,138.34,138.33,4.88205146]
[1765200084593,0.1,138.34,138.33,12.11114131]
[1765200084796,0.1,138.34,138.33,7.22908985]
[1765200085396,0.81,138.34,138.33,7.22908985]
[1765200086396,0.81,138.34,138.3,7.23038333]
[1765200086699,0.81,138.34,138.3,7.23065798]
[1765200086867,0.81,138.34,138.3,11.53270944]
[1765200087380,0.1,138.34,138.3,12.11270944]
[1765200087592,0.81,138.34,138.3,11.53270944]
[1765200087789,0.81,138.34,138.3,29.60935441]
[1765200088499,0.81,138.34,138.31,4.30205146]
[1765200088673,0.81,138.34,138.32,7.22961249]
[1765200090378,0.81,138.34,138.31,7.2301352]
[1765200090901,5.11205146,138.34,138.31,7.2301352]
[1765200091201,0.81,138.34,138.31,7.2301352]
[1765200091385,0.71,138.33,138.31,7.2301352]
[1765200092088,0.71,138.33,138.3,7.23065798]
[1765200093578,0.71,138.33,138.3,4.30205146]
[1765200093878,0.71,138.33,138.29,22.37930372]
[1765200094375,0.71,138.33,138.29,18.07725226]
[1765200095708,0.71,138.33,138.29,25.30843311]
[1765200096579,0.71,138.33,138.29,29.61048457]
[1765200097282,0.1,138.34,138.31,4.30205146]
[1765200097481,0.81,138.34,138.31,4.30205146]
[1765200097717,0.81,138.34,138.32,7.22961249]
[1765200098512,0.1,138.34,138.32,11.53166395]
[1765200098729,0.1,138.34,138.33,12.80205146]
[1765200099614,0.1,138.34,138.33,20.03114131]
[1765200099910,0.1,138.34,138.33,15.72908985]
[1765200100088,0.1,138.34,138.33,20.03114131]
[1765200100486,0.1,138.38,138.37,16.308864]
[1765200100847,0.1,138.38,138.37,28.53091546]
[1765200100989,0.1,138.38,138.37,29.11091546]
[1765200101812,0.1,138.38,138.37,36.33791553]
[1765200103096,0.1,138.39,138.37,36.33791553]
[1765200103300,0.1,138.39,138.38,4.88205146]
[1765200103812,0.1,138.39,138.38,11.52852927]
[1765200104194,0.1,138.39,138.38,7.22647781]
[1765200104394,0.1,138.39,138.38,11.52852927]
[1765200105509,0.1,138.39,138.38,12.10852927]
[1765200105901,0.1,138.39,138.38,11.52852927]
[1765200106094,0.1,138.39,138.38,12.10852927]
[1765200106291,1e-08,138.39,138.38,20.02852927]
[1765200106686,1e-08,138.39,138.38,22.70537947]
[1765200106891,1e-08,138.39,138.38,31.51532439]
[1765200109494,0.1,138.46,138.41,16.308864]
[1765200109799,0.71,138.51,138.45,6.97890166]
[1765200109995,0.71,138.51,138.46,14.89890166]
[1765200110401,30.50628216,138.54,138.46,14.89890166]
[1765200110402,0.71,138.5,138.46,14.89890166]
[1765200110602,15.78884658,138.53,138.46,14.89890166]
[1765200110805,0.81,138.47,138.45,6.97890166]
[1765200111015,0.81,138.47,138.44,6.97890166]
[1765200111197,0.81,138.47,138.44,7.22293065]
[1765200113109,0.81,138.47,138.43,7.22365634]
[1765200113310,7.78890166,138.47,138.43,7.22365634]
[1765200113799,7.66890166,138.46,138.42,7.22423802]
[1765200114196,0.69,138.45,138.42,7.22423802]
[1765200114541,0.69,138.45,138.42,14.20313968]
[1765200115512,0.69,138.45,138.42,32.26411352]
[1765200119229,0.69,138.45,138.42,7.22423802]
[1765200119798,0.69,138.45,138.42,32.26411352]
[1765200120138,0.69,138.45,138.43,6.97890166]
[1765200120305,0.69,138.45,138.42,32.26411352]
[1765200120506,0.79,138.47,138.44,6.97890166]
[1765200120932,0.79,138.47,138.42,25.28521186]
[1765200121110,6.97890166,138.46,138.42,7.22423802]
[1765200121510,7.66890166,138.45,138.4,32.26768819]
[1765200121715,14.89193733,138.45,138.4,25.28878653]
[1765200121916,0.69,138.44,138.4,25.28878653]
[1765200123129,0.69,138.44,138.42,6.97890166]
[1765200124116,0.69,138.44,138.41,6.97890166]
[1765200124321,0.69,138.44,138.4,32.26768819]
[1765200124646,0.69,138.44,138.4,25.28878653]
[1765200125430,0.69,138.44,138.4,14.20433518]
[1765200125639,0.67,138.46,138.42,6.97890166]
[1765200126122,0.67,138.46,138.41,6.97890166]
[1765200127420,0.67,138.46,138.42,7.22438953]
[1765200128025,30.6096887,138.47,138.44,6.97890166]
[1765200128026,0.1,138.47,138.44,6.97890166]
[1765200128355,0.67,138.46,138.43,6.97890166]
[1765200128726,0.67,138.46,138.43,2.68367316]
[1765200129138,0.67,138.46,138.44,7.22334585]
[1765200129561,0.1,138.47,138.44,9.90701901]
[1765200129725,0.77,138.47,138.44,9.90701901]
[1765200130164,0.77,138.47,138.44,25.28171048]
[1765200130327,0.77,138.47,138.44,7.22334585]
[1765200131549,0.77,138.47,138.45,2.68367316]
[1765200131848,0.1,138.47,138.45,2.68367316]
[1765200132151,0.1,138.47,138.45,3.26367316]
[1765200132350,0.1,138.47,138.45,2.68367316]
[1765200133026,0.1,138.47,138.46,3.26367316]
[1765200133225,0.1,138.47,138.46,10.48597563]
[1765200133430,0.1,138.47,138.46,9.90597563]
[1765200135062,0.1,138.47,138.46,7.22230247]
[1765200135063,0.77,138.47,138.46,7.22230247]
[1765200135438,0.77,138.47,138.45,7.22280671]
[1765200135632,0.77,138.47,138.44,7.22331772]
[1765200136057,0.77,138.47,138.45,7.2225404]
[1765200137350,0.77,138.47,138.45,9.90621356]
[1765200139940,0.77,138.47,138.45,7.2225404]
[1765200140153,0.77,138.47,138.45,9.90621356]
[1765200143161,0.77,138.47,138.45,7.2225404]
[1765200149067,0.77,138.47,138.44,7.22334585]
[1765200149369,0.77,138.47,138.43,9.90742922]
[1765200151364,0.77,138.47,138.43,2.68367316]
[1765200152252,0.77,138.47,138.44,7.22334585]
[1765200156753,7.99179768,138.47,138.44,7.22334585]
[1765200157472,0.65,138.46,138.44,7.22334585]
[1765200158085,0.65,138.46,138.43,7.22386765]
[1765200160066,7.87239001,138.46,138.42,7.22438953]
[1765200160574,0.65,138.45,138.42,7.22438953]
[1765200160780,0.65,138.45,138.42,9.90806269]
[1765200164376,7.87291692,138.45,138.41,7.22478166]
[1765200164677,10.55659008,138.45,138.4,2.68367316]
[1765200164883,0.65,138.44,138.4,2.68367316]
[1765200165766,0.65,138.44,138.41,7.22491149]
[1765200166386,7.87340539,138.44,138.41,7.22491149]
[1765200166756,0.65,138.43,138.41,7.22491149]
[1765200168298,3.33367316,138.43,138.37,25.98679017]
[1765200168464,10.55769994,138.43,138.38,9.91015097]
[1765200168791,0.65,138.42,138.38,8.94536506]
[1765200169561,1.71888725,138.41,138.37,7.22685229]
[1765200169866,7.87455991,138.42,138.36,7.22717444]
[1765200169867,1.71888725,138.4,138.36,7.22717444]
[1765200170178,1.71888725,138.4,138.34,8.5]
[1765200170179,1.71888725,138.4,138.34,9.63888725]
[1765200170367,0.65,138.39,138.34,9.63888725]
[1765200170790,0.65,138.39,138.36,7.22744672]
[1765200170960,0.65,138.39,138.37,7.22689416]
[1765200171677,0.65,138.39,138.36,7.2275224]
[1765200172090,2.36888725,138.39,138.36,7.2275224]
[1765200172477,0.72,138.38,138.36,7.2275224]
[1765200173895,0.72,138.38,138.35,25.29764473]
[1765200174058,0.72,138.38,138.35,27.01653198]
[1765200174265,0.72,138.4,138.36,0.58]
[1765200174480,0.72,138.42,138.38,1.71888725]
[1765200175369,0.72,138.42,138.38,2.29888725]
[1765200175569,0.72,138.42,138.39,7.22595563]
[1765200176080,0.72,138.42,138.35,44.89047895]
[1765200176081,1.71888725,138.4,138.35,16.308864]
[1765200176271,1.71888725,138.4,138.35,7.22770781]
[1765200176475,0.72,138.39,138.34,20.3694952]
[1765200176867,0.72,138.39,138.34,19.7894952]
[1765200177065,2.43888725,138.39,138.35,7.22785127]
[1765200177268,2.43888725,138.39,138.36,7.22750346]
[1765200177467,0.72,138.38,138.36,7.22750346]
[1765200179169,0.72,138.38,138.35,7.22804481]
[1765200179368,0.72,138.38,138.34,7.22834043]
[1765200180906,7.94652103,138.38,138.34,7.80834043]
[1765200181095,1.71888725,138.37,138.33,7.22888102]
[1765200181279,2.43888725,138.37,138.33,7.22888102]
[1765200181478,0.72,138.36,138.33,7.22888102]
[1765200182673,0.72,138.36,138.32,25.30291102]
[1765200182878,0.72,138.36,138.32,25.88291102]
[1765200183193,0.72,138.36,138.32,27.60179827]
[1765200187188,0.72,138.36,138.32,27.60179827]
[1765200187594,7.9475741,138.36,138.32,25.30291102]
[1765200187776,7.9475741,138.36,138.32,7.22961249]
[1765200188099,0.72,138.35,138.31,8.94902245]
[1765200188475,0.72,138.35,138.31,7.2301352]
[1765200189271,7.94823471,138.35,138.31,7.2301352]
[1765200189577,9.66712196,138.35,138.31,7.2301352]
[1765200189778,0.72,138.34,138.31,7.2301352]
[1765200191473,9.66751975,138.34,138.3,7.43051389]
[1765200191679,1.71888725,138.33,138.3,0.2]
[1765200191876,2.43888725,138.33,138.3,0.2]
[1765200192194,0.72,138.32,138.3,0.2]
[1765200192398,10.35888725,138.32,138.3,0.2]
[1765200192887,0.72,138.31,138.3,0.2]
[1765200193487,7.9501352,138.31,138.3,0.2]
[1765200193688,0.72,138.31,138.3,0.2]
[1765200196897,7.9501352,138.31,138.3,0.2]
[1765200197110,9.66902245,138.31,138.3,0.2]
[1765200197311,18.47896737,138.31,138.3,0.2]
[1765200198304,18.47896737,138.31,138.27,0.2]
[1765200198305,23.54056778,138.28,138.27,0.2]
[1765200198499,33.17945503,138.28,138.27,0.2]
[1765200198707,33.89945503,138.28,138.27,0.2]
[1765200199310,42.70939995,138.28,138.27,0.2]
[1765200204608,96.94717836,138.28,138.18,2.29888725]
[1765200204790,1.71888725,138.23,138.18,7.81671961]
[1765200204988,9.63888725,138.23,138.18,7.81671961]
[1765200205190,0.66,138.22,138.18,7.23671961]
[1765200205394,1.71888725,138.21,138.16,0.2]
[1765200205622,9.63888725,138.2,138.16,0.2]
[1765200206215,10.29888725,138.2,138.16,0.78]
[1765200206392,8.58,138.2,138.16,8.0175893]
[1765200206593,10.29888725,138.2,138.16,8.0175893]
[1765200206811,8.58,138.2,138.16,8.0175893]
[1765200207616,17.5349129,138.2,138.16,8.0175893]
[1765200208286,10.29888725,138.2,138.16,8.0175893]
[1765200209721,2.37888725,138.19,138.16,0.2]
[1765200210023,1.71888725,138.18,138.16,0.2]
[1765200210216,10.29888725,138.17,138.16,0.2]
[1765200211296,19.10883217,138.17,138.16,0.2]
[1765200211804,26.34629326,138.17,138.16,0.2]
[1765200213200,24.62740601,138.17,138.16,0.2]
[1765200213624,26.34629326,138.17,138.16,0.2]
[1765200213927,2.37888725,138.17,138.16,0.2]
[1765200214109,7.92,138.18,138.16,0.2]
[1765200215415,2.37888725,138.17,138.16,0.2]
[1765200215805,0.66,138.17,138.16,0.2]
[1765200216427,16.87617438,138.18,138.16,0.78]
[1765200216428,7.92,138.18,138.16,0.78]
[1765200216612,7.92,138.18,138.16,8.01791172]
[1765200217018,7.92,138.18,138.16,7.43791172]
[1765200217222,7.92,138.18,138.17,0.58]
[1765200217420,7.92,138.2,138.17,0.58]
[1765200217927,7.92,138.2,138.17,7.81738366]
[1765200218910,0.66,138.19,138.16,7.43785611]
[1765200219428,8.58,138.2,138.17,7.23744707]
[1765200219916,8.58,138.2,138.17,7.81744707]
[1765200221614,8.58,138.2,138.17,7.23744707]
[1765200224028,0.66,138.19,138.16,0.2]
[1765200224933,18.02775125,138.17,138.16,0.2]
[1765200225237,18.44883217,138.17,138.16,0.2]
[1765200225421,42.65515726,138.17,138.16,0.2]
[1765200228827,43.63259393,138.17,138.16,0.2]
[1765200231932,27.32372993,138.17,138.16,1e-08]
[1765200232438,43.63259393,138.17,138.16,1e-08]
[1765200233026,24.228864,138.17,138.16,1e-08]
[1765200233226,34.82264901,138.17,138.16,1e-08]
[1765200233535,2.89802571,138.21,138.16,7.81798495]
[1765200233736,7.92,138.2,138.16,7.81798495]
[1765200233944,17.85234567,138.2,138.16,7.81798495]
[1765200234132,18.51234567,138.2,138.16,7.81798495]
[1765200236239,18.51234567,138.2,138.16,1e-08]
[1765200236240,3.35632392,138.19,138.16,1e-08]
[1765200236643,3.35632392,138.18,138.16,1e-08]
[1765200236840,7.92,138.17,138.16,1e-08]
[1765200237145,8.58,138.17,138.16,1e-08]
[1765200237929,17.38994492,138.17,138.16,1e-08]
[1765200238248,36.39513284,138.17,138.16,1e-08]
[1765200238449,43.63259393,138.17,138.16,1e-08]
[1765200238628,27.32372993,138.17,138.16,1e-08]
[1765200241240,25.11880892,138.14,138.13,0.2]
[1765200241567,8.80994492,138.14,138.13,0.2]
[1765200241741,7.92,138.14,138.13,0.2]
[1765200245268,8.63,138.14,138.13,0.2]
[1765200245464,7.92,138.14,138.13,0.2]
[1765200248370,8.02098887,138.19,138.13,10.71588085]
[1765200248371,7.23711975,138.18,138.13,10.71588085]
[1765200248668,7.92,138.17,138.13,10.71588085]
[1765200248849,7.92,138.17,138.14,0.58]
[1765200249862,7.92,138.17,138.14,7.81883134]
[1765200250358,7.92,138.17,138.15,3.27632392]
[1765200250669,7.92,138.17,138.15,0.58]
[1765200251860,15.15753673,138.17,138.13,7.4391625]
[1765200252041,3.40632392,138.16,138.13,0.2]
[1765200252840,19.00518792,138.16,138.13,0.2]
[1765200253055,3.40632392,138.15,138.13,0.2]
[1765200253255,7.92,138.14,138.13,0.2]
[1765200255977,15.86903286,138.14,138.13,0.2]
[1765200256173,7.92,138.14,138.13,0.2]
[1765200256372,7.92,138.14,138.13,0.78]
[1765200256770,27.3753017,138.14,138.13,0.2]
[1765200257080,24.67897778,138.14,138.13,0.2]
[1765200257374,7.92,138.14,138.13,0.2]
[1765200259956,27.3753017,138.14,138.13,0.2]
[1765200262573,43.6841657,138.14,138.13,0.2]
[1765200263162,25.11880892,138.11,138.1,0.2]
[1765200263350,33.03880892,138.11,138.1,0.2]
[1765200263551,36.43513284,138.11,138.1,0.2]
[1765200264447,43.67573815,138.11,138.1,0.2]
[1765200265276,43.67573815,138.11,138.1,1e-08]
[1765200265459,46.37206207,138.11,138.07,0.2]
[1765200265665,19.00518792,138.08,138.07,0.2]
[1765200265850,35.73513284,138.08,138.07,0.2]
[1765200266054,25.11880892,138.04,138.03,0.2]
[1765200266254,36.43513284,138.04,138.03,0.2]
[1765200266471,43.67940986,138.04,138.03,0.2]
[1765200267656,35.75940986,138.04,138.03,0.2]
[1765200267858,43.67940986,138.04,138.03,0.2]
[1765200268329,40.28308594,138.04,138.03,0.2]
[1765200268459,7.92,138.04,138.03,0.91]
[1765200268862,7.92,138.04,138.03,8.15480185]
[1765200269089,7.92,138.04,138.03,0.91]
[1765200269400,7.92,138.04,138.03,0.2]
[1765200269552,10.61632392,138.04,138.03,0.2]
[1765200269750,27.37054586,138.04,138.03,0.2]
[1765200270572,10.61632392,138.04,138.03,0.2]
[1765200270771,10.61632392,138.04,138.03,0.91]
[1765200270772,7.92,138.04,138.03,0.91]
[1765200270966,7.92,138.04,138.03,8.15480185]
[1765200272071,7.92,138.04,138.03,0.2]
[1765200272758,7.92,138.04,138.03,8.15480185]
[1765200273960,7.92,138.04,138.03,0.91]
[1765200275491,7.92,138.04,138.03,8.15480185]
[1765200276271,7.92,138.04,138.03,0.2]
[1765200278188,7.92,138.04,138.03,8.15480185]
[1765200280205,7.94,138.06,138.03,8.15480185]
[1765200280365,16.050026,138.12,138.04,0.71]
[1765200280691,7.94,138.11,138.06,2.69632392]
[1765200281031,24.248864,138.11,138.06,2.69632392]
[1765200281293,0.7,138.18,138.1,2.69632392]
[1765200281500,17.87378501,138.17,138.11,2.69632392]
[1765200281795,16.308864,138.16,138.12,0.71]
[1765200281974,19.00518792,138.16,138.09,2.69632392]
[1765200282176,17.008864,138.16,138.09,2.69632392]
[1765200282388,9.93503188,138.15,138.1,7.95112961]
[1765200282566,7.94,138.14,138.1,7.95112961]
[1765200282896,7.94,138.14,138.1,7.24112961]
[1765200283082,7.94,138.14,138.11,0.71]
[1765200283596,0.7,138.13,138.09,7.95144643]
[1765200284091,16.5211822,138.13,138.08,7.2420134]
[1765200284271,7.24008108,138.12,138.08,7.2420134]
[1765200284471,7.94,138.11,138.08,7.9520134]
[1765200284679,7.94,138.11,138.08,7.2420134]
[1765200285578,8.64,138.11,138.08,7.2420134]
[1765200286174,8.64,138.11,138.07,7.24259134]
[1765200286175,0.7,138.1,138.07,7.24259134]
[1765200286377,22.89202038,138.11,138.07,7.95259134]
[1765200286997,7.94,138.11,138.08,0.71]
[1765200287703,7.94,138.11,138.08,7.95183079]
[1765200288109,7.94,138.11,138.09,0.71]
[1765200288300,7.94,138.13,138.09,0.71]
[1765200288597,7.94,138.13,138.09,7.72123728]
[1765200288902,8.64,138.13,138.08,14.25306807]
[1765200289083,8.64,138.13,138.09,0.71]
[1765200289279,7.94,138.13,138.1,7.24112961]
[1765200289702,7.94,138.13,138.1,7.95112961]
[1765200291906,121.09396399,138.17,138.1,7.95112961]
[1765200291907,0.66,138.2,138.12,4.31529205]
[1765200292210,0.66,138.2,138.14,4.31529205]
[1765200292211,7.94,138.19,138.14,4.31529205]
[1765200292599,8.6,138.19,138.15,0.72]
[1765200293090,15.8364423,138.19,138.15,7.95820621]
[1765200293508,8.6,138.19,138.15,7.95820621]
[1765200293816,0.66,138.18,138.15,7.23820621]
[1765200294106,19.49175349,138.19,138.15,7.23820621]
[1765200294611,0.66,138.18,138.14,7.95903286]
[1765200294905,19.49175349,138.19,138.14,7.95903286]
[1765200295105,20.15175349,138.19,138.15,0.72]
[1765200295915,0.66,138.18,138.14,7.23903286]
[1765200296092,4.31529205,138.17,138.13,7.23944104]
[1765200296296,7.92,138.16,138.13,7.23944104]
[1765200296507,8.58,138.16,138.13,7.23944104]
[1765200296806,0.66,138.15,138.12,7.23992113]
[1765200297397,12.23529205,138.16,138.12,7.95992113]
[1765200297597,12.89529205,138.16,138.12,7.95992113]
[1765200297799,0.66,138.15,138.12,7.23992113]
[1765200298391,0.66,138.15,138.11,7.96060531]
[1765200299415,7.92,138.16,138.12,0.66]
[1765200299612,8.63,138.16,138.12,0.66]
[1765200299921,0.71,138.15,138.11,7.24060531]
[1765200300218,7.92,138.16,138.13,4.31529205]
[1765200300411,16.308864,138.2,138.15,4.31529205]
[1765200300592,7.92,138.21,138.18,4.31529205]
[1765200300999,7.92,138.21,138.19,4.97529205]
[1765200301201,7.92,138.21,138.2,0.66]
[1765200301724,8.63,138.21,138.16,4.31529205]
[1765200301896,0.71,138.2,138.16,0.66]
[1765200302096,7.92,138.21,138.17,21.28415605]
[1765200302297,7.92,138.21,138.19,11.55170568]
[1765200302700,7.92,138.21,138.19,7.89641363]
[1765200304593,7.92,138.21,138.2,0.66]
[1765200304794,21.06811894,138.26,138.2,0.66]
[1765200305019,7.92,138.24,138.2,0.66]
[1765200305221,7.92,138.24,138.2,4.97529205]
[1765200305606,7.92,138.24,138.2,0.66]
[1765200305812,8.63,138.24,138.21,7.23536647]
[1765200307033,8.63,138.24,138.2,7.23589001]
[1765200307034,0.71,138.23,138.2,7.23589001]
[1765200307327,13.83523697,138.23,138.18,0.66]
[1765200307534,15.153869,138.24,138.19,7.23628645]
[1765200307830,0.71,138.23,138.19,7.23628645]
[1765200309109,7.94443894,138.23,138.19,7.23628645]
[1765200309404,0.71,138.23,138.19,7.23628645]
[1765200310624,5.02529205,138.23,138.19,7.23628645]
[1765200310826,5.02529205,138.23,138.18,25.32830167]
[1765200311051,0.71,138.22,138.18,25.98830167]
[1765200311927,20.17930705,138.24,138.19,0.66]
[1765200312137,7.92,138.24,138.19,4.97529205]
[1765200312426,8.63,138.24,138.19,4.97529205]
[1765200312633,0.71,138.23,138.19,0.66]
[1765200312938,0.71,138.23,138.2,7.23589001]
[1765200314008,7.92,138.23,138.2,7.89589001]
[1765200314508,8.63,138.23,138.2,7.89589001]
[1765200314997,8.63,138.23,138.19,25.32744771]
[1765200315194,0.71,138.23,138.19,25.98744771]
[1765200315399,0.71,138.22,138.19,25.32744771]